bitfinex/quotes_SOLUSD_20240606
["timestamp","ask_amount","ask_price","bid_price","bid_amount"]
[1717696940495,4.3006,172.07,171.99,45.0]
[1717696940496,2.1503,172.07,171.99,45.0]
[1717696940710,6.56,172.04,171.99,45.0]
[1717696941203,2.1503,172.07,171.99,51.56]
[1717696941496,6.56,172.05,171.99,51.56]
[1717696941804,2.1503,172.07,171.99,51.56]
[1717696942005,6.56,172.05,171.99,51.56]
[1717696942210,2.1502,172.08,172.0,120.0]
[1717696942400,2.1502,172.08,172.01,45.0]
[1717696942596,6.56,172.06,172.01,45.0]
[1717696944106,6.56,172.05,172.01,45.0]
[1717696947685,6.56,172.03,172.01,45.0]
[1717696947889,6.56,172.04,172.01,45.0]
[1717696949519,6.56,172.02,171.98,120.0]
[1717696949723,2.1505,172.06,171.99,20.0]
[1717696949900,6.56,172.02,171.99,20.0]
[1717696950719,6.56,172.01,171.97,20.0]
[1717696950917,6.56,172.0,171.97,20.0]
[1717696951299,6.56,172.0,171.97,25.817]
[1717696951498,6.56,172.0,171.98,45.0]
[1717696951700,6.56,172.01,171.99,20.0]
[1717696954139,6.56,172.01,171.96,120.0]
[1717696954334,6.56,171.98,171.94,120.0]
[1717696954700,6.56,171.96,171.92,120.0]
[1717696955225,6.56,171.96,171.9,11.11889673]
[1717696955226,6.56,171.95,171.9,120.0]
[1717696955401,6.56,171.94,171.88,125.817]
[1717696955610,6.56,171.94,171.9,120.0]
[1717696956016,6.56,171.94,171.88,132.377]
[1717696956216,6.56,171.93,171.88,132.377]
[1717696956430,6.56,171.93,171.88,132.4101]
[1717696956643,6.1379,171.98,171.87,5.817]
[1717696956937,6.56,171.91,171.87,5.817]
[1717696958039,6.56,171.91,171.88,25.817]
[1717696958231,6.56,171.9,171.88,25.817]
[1717696958423,6.56,171.9,171.88,5.817]
[1717696958938,6.56,171.91,171.87,5.817]
[1717696959250,8.2893,171.98,171.88,125.987]
[1717696959431,6.56,171.93,171.89,45.0]
[1717696959822,8.2893,171.98,171.89,45.0]
[1717696960023,6.56,171.93,171.89,45.0]
[1717696961222,8.2893,171.98,171.89,45.0]
[1717696961618,6.56,171.93,171.89,45.0]
[1717696963337,6.1379,171.98,171.9,120.0]
[1717696963541,6.56,171.94,171.91,45.0]
[1717696966648,8.2893,171.98,171.91,45.0]
[1717696967147,6.56,171.94,171.91,45.0]
[1717696967345,12.9391,172.02,171.91,45.0]
[1717696967522,2.1512,172.0,171.92,120.0]
[1717696967727,6.56,171.96,171.93,45.0]
[1717696968139,15.1964,172.04,171.94,120.17]
[1717696968440,6.56,171.99,171.96,120.0]
[1717696968627,17.3471,172.04,171.97,45.0]
[1717696969043,6.56,172.0,171.96,120.0]
[1717696969343,17.3471,172.04,171.96,120.0]
[1717696969557,6.56,172.0,171.96,120.0]
[1717696970423,2.1506,172.04,171.96,120.0]
[1717696970616,6.56,172.0,171.96,120.0]
[1717696971843,2.1508,172.03,171.96,120.0]
[1717696972047,2.1507,172.04,171.96,120.0]
[1717696972449,6.56,172.0,171.96,120.0]
[1717696973530,2.1507,172.04,171.96,120.0]
[1717696973937,6.56,172.0,171.96,120.0]
[1717696974561,2.1507,172.04,171.96,120.0]
[1717696974862,6.56,172.0,171.96,120.0]
[1717696975050,2.1507,172.04,171.96,120.0]
[1717696975372,2.1503,172.07,171.98,120.0]
[1717696975650,2.1503,172.07,171.99,45.0]
[1717696975856,6.56,172.04,172.0,120.0]
[1717696976436,28.3902,172.08,172.0,120.0]
[1717696976636,6.56,172.04,172.01,45.0]
[1717696977637,2.1502,172.08,172.01,45.0]
[1717696977843,6.56,172.04,172.01,45.0]
[1717696980162,2.1502,172.08,172.01,45.0]
[1717696980547,6.56,172.04,172.01,45.0]
[1717696983464,6.56,172.03,172.01,45.0]
[1717696984572,8.7102,172.08,172.01,45.0]
[1717696984754,6.56,172.04,172.01,45.0]
[1717696989182,2.15,172.09,172.01,45.0]
[1717696989357,6.56,172.05,172.01,45.0]
[1717696989875,2.15,172.09,172.01,45.0]
[1717696990185,6.56,172.05,172.01,45.0]
[1717696990678,2.15,172.09,172.01,45.0]
[1717696991059,6.56,172.05,172.01,45.0]
[1717696992967,6.56,172.04,172.01,45.0]
[1717696993558,6.56,172.05,172.01,45.0]
[1717696995579,2.15,172.09,172.01,45.0]
[1717696995783,6.56,172.05,172.01,45.0]
[1717696996582,2.15,172.09,172.01,45.0]
[1717696996803,6.56,172.05,172.01,45.0]
[1717697000267,2.15,172.09,172.01,45.0]
[1717697000485,6.56,172.05,172.01,45.0]
[1717697001513,2.15,172.09,172.01,45.0]
[1717697001695,6.56,172.05,172.01,45.0]
[1717697006693,6.56,172.06,172.01,45.0]
[1717697008010,6.56,172.05,172.01,45.0]
[1717697012017,2.1501,172.09,172.01,45.0]
[1717697012514,6.56,172.05,172.01,45.0]
[1717697017800,2.1501,172.09,172.01,45.0]
[1717697018002,6.56,172.06,172.01,45.0]
[1717697018916,2.1501,172.09,172.01,45.0]
[1717697019221,6.56,172.05,172.01,45.0]
[1717697020799,2.15,172.09,172.01,45.0]
[1717697021205,6.56,172.06,172.01,45.0]
[1717697021416,2.15,172.09,172.01,51.0031]
[1717697021599,6.56,172.06,172.01,51.0031]
[1717697022810,2.15,172.09,172.01,51.0031]
[1717697023021,6.56,172.06,172.01,51.0031]
[1717697025002,10.7245,172.13,172.02,120.0]
[1717697025319,6.56,172.08,172.03,51.1641]
[1717697028710,2.1499,172.1,172.03,51.1641]
[1717697028909,6.56,172.08,172.03,51.1641]
[1717697029328,2.1499,172.1,172.03,51.1641]
[1717697029634,4.2993,172.12,172.04,120.0]
[1717697029635,2.1497,172.12,172.04,120.0]
[1717697029805,2.1497,172.12,172.04,126.56]
[1717697030123,2.1495,172.13,172.05,51.6241]
[1717697030438,6.56,172.1,172.06,6.6241]
[1717697031025,6.56,172.11,172.06,6.6241]
[1717697031527,2.1495,172.13,172.06,126.6241]
[1717697031727,6.56,172.11,172.06,126.6241]
[1717697032142,6.56,172.11,172.07,45.0]
[1717697034442,2.1494,172.14,172.07,45.0]
[1717697034642,6.56,172.11,172.07,45.0]
[1717697035336,2.1494,172.14,172.07,45.0]
[1717697035531,6.56,172.11,172.07,45.0]
[1717697037255,2.1494,172.14,172.07,45.0]
[1717697037435,6.56,172.11,172.07,51.441]
[1717697037823,6.4469,172.18,172.08,126.1333]
[1717697038126,2.1493,172.15,172.09,6.1333]
[1717697038325,6.56,172.14,172.09,6.1333]
[1717697039149,6.56,172.13,172.09,6.1333]
[1717697039644,2.1493,172.15,172.08,120.0]
[1717697043444,6.56,172.1,172.07,45.0]
[1717697044148,6.56,172.11,172.07,45.0]
[1717697045327,2.1493,172.15,172.07,45.0]
[1717697045541,6.56,172.11,172.06,120.0]
[1717697045744,6.56,172.1,172.07,20.0]
[1717697049056,2.1493,172.15,172.07,20.0]
[1717697049453,6.56,172.11,172.07,20.0]
[1717697050545,2.1492,172.16,172.07,20.0]
[1717697050840,6.56,172.11,172.07,20.0]
[1717697051040,6.56,172.11,172.06,120.0]
[1717697052234,2.1493,172.15,172.06,120.0]
[1717697052633,6.56,172.11,172.04,132.377]
[1717697052836,6.56,172.11,172.05,65.0]
[1717697053755,6.56,172.09,172.04,5.817]
[1717697054132,6.56,172.08,172.04,5.817]
[1717697054325,2.1496,172.13,172.04,5.817]
[1717697054756,6.56,172.09,172.04,5.817]
[1717697055349,6.56,172.08,172.04,5.817]
[1717697056356,6.56,172.08,172.03,6.392]
[1717697056540,6.56,172.08,172.04,65.0]
[1717697056943,6.56,172.07,172.04,20.0]
[1717697057148,6.56,172.07,172.03,20.0]
[1717697058641,2.1496,172.12,172.03,20.0]
[1717697058854,6.56,172.07,172.03,20.0]
[1717697061439,6.56,172.06,172.02,120.0]
[1717697069869,2.1498,172.11,172.02,120.0]
[1717697070259,6.56,172.07,172.02,120.0]
[1717697071145,2.1498,172.11,172.02,120.0]
[1717697071344,6.56,172.07,172.03,45.0]
[1717697072471,6.56,172.06,172.03,45.0]
[1717697073147,6.56,172.07,172.03,45.0]
[1717697073347,2.1498,172.11,172.03,45.0]
[1717697073549,6.56,172.07,172.03,45.0]
[1717697074471,6.56,172.08,172.03,45.0]
[1717697075654,2.1498,172.11,172.03,45.0]
[1717697075976,6.56,172.08,172.03,45.0]
[1717697077672,2.1498,172.11,172.03,45.0]
[1717697077877,6.56,172.08,172.03,45.0]
[1717697080377,6.56,172.07,172.03,45.0]
[1717697083370,6.56,172.06,172.03,45.0]
[1717697083583,6.56,172.06,172.02,120.0]
[1717697083769,6.56,172.05,172.02,120.0]
[1717697087985,6.56,172.05,172.0,120.0]
[1717697088157,6.56,172.04,172.01,65.0]
[1717697092665,6.56,172.02,171.98,120.0]
[1717697092869,6.56,171.99,171.94,120.0]
[1717697093073,6.56,171.98,171.95,20.0]
[1717697093275,2.1508,172.03,171.95,20.0]
[1717697093582,6.56,171.97,171.95,20.0]
[1717697093889,6.56,171.97,171.94,120.0]
[1717697094068,6.56,171.97,171.95,45.0]
[1717697094257,6.56,171.98,171.95,45.0]
[1717697095283,6.56,171.98,171.96,20.0]
[1717697095491,6.3872,172.05,171.96,20.0]
[1717697095492,6.56,171.99,171.96,20.0]
[1717697096759,8.5377,172.05,171.96,140.0]
[1717697096956,6.56,171.99,171.96,140.0]
[1717697097160,6.3872,172.05,171.96,140.0]
[1717697097356,6.56,172.01,171.97,45.0]
[1717697100481,6.3872,172.05,171.97,45.0]
[1717697100683,6.56,171.98,171.96,140.0]
[1717697101366,2.1512,172.0,171.92,120.0]
[1717697101571,6.56,171.94,171.91,5.817]
[1717697101966,6.56,171.93,171.91,5.817]
[1717697102661,6.56,171.93,171.89,5.817]
[1717697103079,26.24,171.99,171.89,5.817]
[1717697103387,6.56,171.94,171.91,5.817]
[1717697103682,6.56,171.94,171.92,20.0]
[1717697104586,6.56,171.93,171.91,5.817]
[1717697104765,6.56,171.93,171.92,20.0]
[1717697105579,6.56,171.93,171.91,5.817]
[1717697105789,6.56,171.94,171.92,20.0]
[1717697106478,6.56,171.93,171.92,20.0]
[1717697107903,6.56,171.93,171.91,5.817]
[1717697108094,6.56,171.93,171.92,20.0]
[1717697108412,26.24,171.99,171.9,20.0]
[1717697108578,6.56,171.95,171.9,140.0]
[1717697109276,26.24,171.99,171.9,140.0]
[1717697109592,6.56,171.94,171.9,140.0]
[1717697110106,6.56,171.94,171.9,145.814]
[1717697110404,6.56,171.94,171.9,140.0]
[1717697110814,26.24,171.99,171.9,140.0]
[1717697110980,6.56,171.94,171.9,140.0]
[1717697113834,26.24,171.99,171.9,140.0]
[1717697114037,6.56,171.94,171.9,140.0]
[1717697117638,26.24,171.99,171.9,140.0]
[1717697117799,2.151,172.01,171.9,140.0]
[1717697117999,8.4676,172.02,171.91,6.56]
[1717697118312,6.3166,172.02,171.92,146.56]
[1717697118616,6.56,171.98,171.93,45.0]
[1717697121129,6.56,171.95,171.92,20.0]
[1717697121306,6.56,171.95,171.91,20.0]
[1717697122206,6.56,171.94,171.91,20.0]
[1717697123134,6.56,171.95,171.91,20.0]
[1717697123434,6.56,171.96,171.92,45.0]
[1717697123807,6.3166,172.02,171.92,45.0]
[1717697123808,6.3166,172.02,171.92,171.56]
[1717697124022,6.56,171.99,171.93,26.56]
[1717697124445,6.56,171.98,171.93,20.0]
[1717697125527,8.4675,172.02,171.92,171.56]
[1717697125712,6.3166,172.02,171.94,120.0]
[1717697125912,6.56,171.99,171.95,45.0]
[1717697126217,6.56,172.0,171.95,45.0]
[1717697127410,2.1508,172.03,171.95,45.0]
[1717697127618,6.56,172.0,171.95,45.0]
[1717697128318,2.151,172.02,171.95,45.0]
[1717697128518,6.56,171.98,171.93,20.0]
[1717697128820,6.56,171.97,171.93,25.814]
[1717697129025,6.56,171.98,171.93,5.814]
[1717697129229,6.56,171.98,171.94,20.0]
[1717697129811,6.56,171.98,171.93,20.0]
[1717697130042,6.56,171.96,171.93,20.0]
[1717697130237,6.56,171.96,171.92,20.0]
[1717697130534,2.1511,172.0,171.92,20.0]
[1717697130535,6.56,171.95,171.92,20.0]
[1717697130916,15.239,172.05,171.94,120.0]
[1717697131115,2.1507,172.04,171.95,45.0]
[1717697131333,6.56,172.0,171.95,45.0]
[1717697134923,6.56,171.98,171.95,45.0]
[1717697135518,6.56,171.98,171.92,146.56]
[1717697135717,6.56,171.98,171.93,45.0]
[1717697135940,6.56,171.98,171.94,20.0]
[1717697136148,6.56,171.97,171.94,20.0]
[1717697136355,25.8217,172.05,171.94,20.0]
[1717697136356,6.56,171.96,171.94,20.0]
[1717697136558,6.56,171.95,171.94,20.0]
[1717697136851,6.56,171.95,171.9,20.0]
[1717697137037,6.56,171.93,171.9,20.0]
[1717697137525,6.56,171.93,171.89,25.814]
[1717697137737,6.56,171.93,171.89,20.0]
[1717697137933,6.56,171.93,171.9,45.0]
[1717697138241,6.56,171.93,171.91,20.0]
[1717697139225,8.5997,172.01,171.91,20.0]
[1717697139534,6.56,171.94,171.91,20.0]
[1717697146457,6.56,171.94,171.89,20.0]
[1717697155671,6.56,171.94,171.88,126.56]
[1717697155864,6.56,171.94,171.89,65.0]
[1717697157378,15.6699,172.0,171.89,65.0]
[1717697157578,6.56,171.95,171.89,65.0]
[1717697157756,6.56,171.94,171.89,65.0]
[1717697158576,6.56,171.92,171.89,65.0]
[1717697158888,6.56,171.92,171.88,120.0]
[1717697159379,6.56,171.91,171.88,120.0]
[1717697160075,6.56,171.91,171.89,20.0]
[1717697161082,6.56,171.9,171.86,20.0]
[1717697161283,6.56,171.9,171.87,45.0]
[1717697161483,6.3313,171.96,171.88,20.0]
[1717697161780,6.56,171.91,171.88,20.0]
[1717697162663,6.3313,171.96,171.88,20.0]
[1717697162980,6.56,171.92,171.88,20.0]
[1717697165089,6.3313,171.96,171.88,20.0]
[1717697165259,6.56,171.92,171.88,20.0]
[1717697166171,6.3313,171.96,171.88,20.0]
[1717697166375,21.8674,172.0,171.91,120.0]
[1717697166565,6.56,171.97,171.92,71.56]
[1717697166773,6.56,171.98,171.92,71.56]
[1717697167083,6.56,171.97,171.92,65.0]
[1717697170275,6.5375,172.0,171.92,65.0]
[1717697170473,6.56,171.97,171.92,65.0]
[1717697170691,6.56,171.98,171.92,71.56]
[1717697171970,6.56,171.98,171.93,0.40815235]
[1717697173088,6.56,171.97,171.92,65.0]
[1717697174097,6.56,171.96,171.92,65.0]
[1717697175699,6.56,171.96,171.92,20.0]
[1717697175876,6.56,171.96,171.91,20.0]
[1717697176787,6.56,171.93,171.91,20.0]
[1717697176988,6.56,171.92,171.9,20.0]
[1717697177190,6.56,171.91,171.88,20.0]
[1717697177580,6.56,171.92,171.88,20.0]
[1717697178587,6.56,171.93,171.88,20.0]
[1717697178790,18.0648,171.99,171.89,120.0]
[1717697178989,6.56,171.94,171.9,65.0]
[1717697179703,15.9135,171.99,171.9,65.0]
[1717697179910,6.56,171.99,171.93,6.56]
[1717697180404,15.3909,172.03,171.93,6.56]
[1717697180606,6.56,171.99,171.94,65.0]
[1717697183398,6.56,171.98,171.94,65.0]
[1717697183800,2.1509,172.02,171.94,65.0]
[1717697184001,6.56,171.97,171.94,20.0]
[1717697184201,2.1509,172.02,171.92,120.0]
[1717697184202,6.56,171.96,171.93,20.0]
[1717697184700,6.56,171.97,171.93,20.0]
[1717697185613,17.7117,172.03,171.94,45.0]
[1717697185913,6.56,171.97,171.95,20.0]
[1717697186096,6.56,171.99,171.95,20.0]
[1717697188315,6.56,171.98,171.95,20.0]
[1717697190214,6.56,171.97,171.95,20.0]
[1717697193012,6.56,171.98,171.95,20.0]
[1717697196302,15.3909,172.03,171.95,20.0]
[1717697196512,6.56,171.99,171.95,20.0]
[1717697196897,15.3909,172.03,171.95,20.0]
[1717697197096,6.56,171.99,171.95,20.0]
[1717697198718,6.56,172.01,171.96,120.0]
[1717697198899,16.4443,172.07,171.96,120.0]
[1717697198900,6.56,172.02,171.96,126.56]
[1717697199106,16.4443,172.07,171.96,126.56]
[1717697199107,6.56,172.03,171.97,71.56]
[1717697200217,6.56,172.01,171.97,65.0]
[1717697200518,6.56,172.0,171.97,65.0]
[1717697200715,6.56,172.0,171.97,20.0]
[1717697201111,6.56,171.99,171.97,20.0]
[1717697201806,6.56,171.99,171.94,26.3486]
[1717697202005,6.56,171.99,171.96,5.814]
[1717697202223,6.56,171.98,171.97,25.814]
[1717697202724,6.56,171.98,171.97,20.0]
[1717697202921,6.56,171.98,171.92,20.0]
[1717697203118,16.4443,172.07,171.93,45.0]
[1717697203119,6.56,171.97,171.93,45.0]
[1717697203302,6.56,171.97,171.94,20.0]
[1717697206327,6.56,171.97,171.93,45.0]
[1717697206526,6.56,171.97,171.92,45.0]
[1717697206728,6.56,171.97,171.91,126.56]
[1717697207229,6.56,171.97,171.91,120.0]
[1717697207407,6.56,171.96,171.91,120.0]
[1717697208100,6.56,171.94,171.89,5.814]
[1717697208304,6.56,171.94,171.9,45.0]
[1717697208932,6.56,171.94,171.89,5.814]
[1717697209514,6.56,171.93,171.89,5.814]
[1717697209819,6.56,171.93,171.9,25.814]
[1717697210518,6.56,171.93,171.9,5.814]
[1717697210828,6.5698,171.97,171.9,5.814]
[1717697211230,6.58,171.92,171.9,5.814]
[1717697211928,6.58,171.92,171.89,5.814]
[1717697212133,6.58,171.92,171.9,20.0]
[1717697212310,6.58,171.92,171.87,20.0]
[1717697212510,6.58,171.92,171.88,45.0]
[1717697212719,6.58,171.92,171.89,20.0]
[1717697212931,6.58,171.91,171.89,20.0]
[1717697213315,6.58,171.91,171.87,5.814]
[1717697213316,6.58,171.91,171.88,20.0]
[1717697213710,6.58,171.91,171.87,20.0]
[1717697213917,6.58,171.9,171.87,20.0]
[1717697214134,6.58,171.89,171.85,20.0]
[1717697214625,6.58,171.89,171.86,5.814]
[1717697214927,6.58,171.89,171.87,20.0]
[1717697215226,6.58,171.89,171.85,20.0]
[1717697215427,6.58,171.89,171.86,45.0]
[1717697215808,6.58,171.89,171.87,20.0]
[1717697217325,15.2145,171.96,171.87,20.0]
[1717697217326,6.58,171.9,171.87,20.0]
[1717697220631,15.2145,171.96,171.81,5.814]
[1717697220632,6.58,171.89,171.82,126.1043]
[1717697220834,6.58,171.88,171.83,45.0]
[1717697221218,6.58,171.88,171.82,126.58]
[1717697221432,6.58,171.87,171.82,120.0]
[1717697222234,6.58,171.87,171.83,20.0]
[1717697223249,6.0655,171.92,171.83,20.0]
[1717697223423,6.58,171.89,171.83,26.58]
[1717697223734,6.0655,171.92,171.83,20.0]
[1717697223735,6.58,171.87,171.83,20.0]
[1717697225423,6.58,171.86,171.83,20.0]
[1717697225630,6.58,171.86,171.82,20.0]
[1717697226135,6.58,171.9,171.82,20.0]
[1717697226323,6.58,171.85,171.82,20.0]
[1717697229315,6.58,171.84,171.82,20.0]
[1717697229545,6.58,171.84,171.81,20.0]
[1717697230741,6.58,171.84,171.8,25.814]
[1717697232239,6.58,171.83,171.8,25.814]
[1717697235842,6.58,171.83,171.8,20.0]
[1717697236156,6.58,171.83,171.77,31.16902928]
[1717697236326,6.58,171.83,171.78,45.0]
[1717697236643,6.58,171.83,171.79,20.0]
[1717697237461,6.58,171.82,171.79,20.0]
[1717697237959,6.1559,171.87,171.79,20.0]
[1717697238255,6.58,171.83,171.79,20.0]
[1717697244959,6.58,171.84,171.79,20.0]
[1717697245155,6.58,171.85,171.8,45.0]
[1717697245455,6.58,171.85,171.81,20.0]
[1717697247748,6.1559,171.87,171.81,20.0]
[1717697247948,6.58,171.85,171.81,20.0]
[1717697248567,6.1559,171.87,171.81,20.0]
[1717697248861,12.7359,171.87,171.82,45.0]
[1717697249063,12.7359,171.87,171.83,20.0]
[1717697252862,6.58,171.86,171.83,20.0]
[1717697257657,6.1559,171.87,171.83,20.0]
[1717697257862,6.58,171.86,171.83,20.0]
[1717697258553,6.58,171.85,171.83,20.0]
[1717697259666,6.1559,171.87,171.83,20.0]
[1717697259972,6.58,171.85,171.83,20.0]
[1717697262557,6.58,171.85,171.81,20.0]
[1717697265568,6.58,171.84,171.81,20.0]
[1717697265761,6.58,171.84,171.79,20.0]
[1717697265960,6.58,171.84,171.8,45.0]
[1717697266164,6.58,171.84,171.81,20.0]
[1717697266364,6.1559,171.87,171.81,20.0]
[1717697266564,6.58,171.84,171.81,20.0]
[1717697266767,6.1559,171.87,171.81,20.0]
[1717697267066,6.58,171.84,171.81,20.0]
[1717697268982,6.58,171.85,171.81,20.0]
[1717697270182,6.58,171.84,171.81,20.0]
[1717697270385,6.1559,171.87,171.81,20.0]
[1717697270683,6.58,171.84,171.81,20.0]
[1717697271781,6.1559,171.87,171.81,20.0]
[1717697271982,6.58,171.84,171.81,20.0]
[1717697273185,6.1559,171.87,171.81,20.0]
[1717697273383,6.58,171.84,171.81,20.0]
[1717697273587,6.1559,171.87,171.81,20.0]
[1717697273888,6.58,171.84,171.81,20.0]
[1717697274685,6.1559,171.87,171.81,20.0]
[1717697274875,6.58,171.84,171.81,20.0]
[1717697275772,6.1559,171.87,171.81,20.0]
[1717697275773,6.58,171.83,171.81,20.0]
[1717697275972,6.58,171.83,171.79,20.0]
[1717697276176,6.58,171.83,171.77,20.0]
[1717697276380,6.58,171.83,171.78,45.0]
[1717697276682,6.58,171.83,171.79,20.0]
[1717697277775,6.1559,171.87,171.79,20.0]
[1717697277974,43.4754,171.9,171.74,5.814]
[1717697277975,6.58,171.8,171.74,5.814]
[1717697278190,6.58,171.79,171.72,120.0]
[1717697278580,6.58,171.79,171.72,124.57784902]
[1717697278779,6.58,171.79,171.73,6.58]
[1717697279176,6.58,171.79,171.72,124.57784902]
[1717697279177,6.58,171.78,171.72,120.0]
[1717697279382,6.58,171.78,171.73,6.58]
[1717697279583,6.58,171.78,171.74,20.0]
[1717697280771,6.58,171.78,171.73,20.0]
[1717697280977,6.58,171.78,171.74,45.0]
[1717697281197,6.58,171.78,171.75,25.814]
[1717697281389,6.58,171.78,171.75,20.0]
[1717697282279,6.58,171.81,171.75,20.0]
[1717697282494,6.58,171.77,171.75,20.0]
[1717697282886,6.58,171.77,171.74,25.814]
[1717697283682,6.58,171.77,171.74,20.0]
[1717697284004,6.58,171.77,171.72,20.0]
[1717697284300,6.58,171.77,171.73,50.814]
[1717697284506,6.58,171.77,171.74,25.814]
[1717697286493,6.58,171.77,171.74,5.814]
[1717697286494,6.58,171.75,171.74,5.814]
[1717697286686,6.58,171.75,171.7,6.58]
[1717697286888,6.2119,171.76,171.7,12.394]
[1717697287208,15.3272,171.77,171.72,5.814]
[1717697287209,6.58,171.77,171.72,5.814]
[1717697287610,6.58,171.76,171.72,5.814]
[1717697288082,6.58,171.76,171.7,6.58]
[1717697288279,6.58,171.76,171.72,5.814]
[1717697288478,6.58,171.76,171.71,45.0]
[1717697288894,2.1537,171.79,171.71,45.0]
[1717697289102,6.58,171.76,171.72,5.814]
[1717697289403,6.58,171.76,171.71,5.814]
[1717697290008,6.58,171.75,171.71,5.814]
[1717697290179,6.58,171.76,171.71,5.814]
[1717697290384,6.3056,171.8,171.69,126.58]
[1717697290385,6.58,171.75,171.69,126.58]
[1717697290591,6.58,171.75,171.7,65.0]
[1717697290797,6.58,171.75,171.71,5.814]
[1717697291810,6.58,171.74,171.71,5.814]
[1717697292815,6.58,171.74,171.7,65.0]
[1717697292991,6.58,171.74,171.7,70.814]
[1717697296510,6.58,171.74,171.7,65.0]
[1717697299897,2.1538,171.79,171.7,65.0]
[1717697300096,6.58,171.75,171.71,5.814]
[1717697300506,6.58,171.74,171.71,5.814]
[1717697300897,2.1538,171.79,171.7,65.0]
[1717697301103,6.58,171.74,171.7,65.0]
[1717697303109,6.58,171.74,171.7,20.0]
[1717697303313,6.58,171.74,171.69,20.0]
[1717697306521,6.58,171.73,171.68,20.0]
[1717697308307,6.58,171.72,171.67,20.0]
[1717697308504,6.58,171.72,171.67,26.58]
[1717697309222,6.58,171.73,171.67,26.58]
[1717697310620,6.58,171.73,171.67,20.0]
[1717697310921,6.58,171.71,171.66,20.0]
[1717697311103,6.58,171.72,171.67,45.0]
[1717697311296,6.58,171.72,171.68,20.0]
[1717697312928,6.58,171.73,171.68,20.0]
[1717697314611,6.58,171.72,171.68,20.0]